bitfinex-derivatives/quotes_ETHF0:USTF0_20250114
["timestamp","ask_amount","ask_price","bid_price","bid_amount"]
[1736857953459,0.31342,3192.0,3191.9,2.49349081]
[1736857954160,0.31342,3192.0,3191.9,2.80692081]
[1736857954357,5.6004,3192.2,3191.9,2.49349081]
[1736857954557,3.52121,3192.2,3192.1,0.31341]
[1736857954956,3.2078,3192.2,3192.1,0.31341]
[1736857955156,3.2078,3192.4,3192.1,41.9985]
[1736857955358,3.52118,3192.4,3192.3,2.80688081]
[1736857956065,3.52118,3192.4,3192.3,43.60688081]
[1736857956266,3.2078,3192.4,3192.3,43.60688081]
[1736857956966,3.64099843,3192.8,3192.3,43.29349081]
[1736857957165,3.2078,3192.8,3192.7,2.80684081]
[1736857958762,3.52111,3193.2,3192.7,2.49349081]
[1736857958965,3.52111,3193.2,3193.1,2.80680081]
[1736857959257,0.31332,3193.1,3193.0,0.31332]
[1736857959463,0.31333,3192.9,3192.8,1.424]
[1736857959664,3.2078,3193.2,3192.8,1.424]
[1736857959863,3.2078,3193.2,3193.0,2.49349081]
[1736857960068,3.2078,3193.2,3192.8,1.424]
[1736857960264,0.31333,3193.0,3192.9,41.11333]
[1736857960467,0.31333,3193.0,3192.9,40.8]
[1736857962174,3.2078,3193.1,3192.9,40.8]
[1736857962472,3.2078,3193.1,3193.0,5.31691081]
[1736857962670,3.52111,3193.1,3193.0,2.49349081]
[1736857963170,3.2078,3193.1,3193.0,43.60681081]
[1736857963773,1.59289,3193.4,3193.0,43.29349081]
[1736857963966,1.59289,3193.4,3193.3,2.80678081]
[1736857964175,3.2078,3193.6,3193.5,0.31327]
[1736857964373,3.52106,3193.6,3193.5,0.31327]
[1736857964569,3.52106,3193.6,3193.5,40.8]
[1736857965074,3.2078,3193.6,3193.5,41.11327]
[1736857965280,3.52106,3193.6,3193.5,41.11327]
[1736857965572,1.2426,3193.8,3193.5,41.11327]
[1736857965573,1.2426,3193.8,3193.5,40.8]
[1736857965769,0.31326,3193.7,3193.6,1.72626]
[1736857965973,1.55585,3193.8,3193.6,1.413]
[1736857966174,1.2426,3193.8,3193.6,1.413]
[1736857966377,1.55585,3193.8,3193.7,0.31325]
[1736857966572,0.31324,3193.9,3193.7,0.31325]
[1736857966873,3.2078,3194.0,3193.6,3.00736]
[1736857967176,3.2078,3194.0,3193.7,0.31325]
[1736857967474,0.31324,3193.8,3193.7,0.31325]
[1736857967774,0.31324,3193.8,3193.7,2.49349081]
[1736857968381,0.31324,3193.9,3193.8,0.31324]
[1736857968570,0.31324,3193.8,3193.7,2.80674081]
[1736857969167,3.2078,3194.0,3193.1,3.73829081]
[1736857969168,0.78309,3193.9,3193.1,3.73829081]
[1736857969370,0.3133,3193.2,3193.1,3.90649081]
[1736857971076,0.31331,3193.1,3193.0,40.8]
[1736857971274,1.2435,3193.1,3192.8,2.49349081]
[1736857971573,1.2435,3193.1,3192.2,3.90649081]
[1736857971574,0.31339,3192.3,3192.2,3.90649081]
[1736857971779,0.31339,3192.3,3192.2,44.70649081]
[1736857972177,0.31339,3192.3,3192.2,43.29349081]
[1736857972479,0.31339,3192.3,3192.2,44.70649081]
[1736857972980,0.31339,3192.3,3192.2,42.213]
[1736857973382,0.31339,3192.3,3192.2,40.8]
[1736857973576,0.31345,3191.7,3191.6,3.90649081]
[1736857974075,0.31345,3191.7,3191.6,42.213]
[1736857975883,3.52125,3191.7,3191.6,42.213]
[1736857980895,0.31345,3191.7,3191.6,42.213]
[1736857982492,0.31345,3191.7,3191.6,42.52646]
[1736857982699,0.31345,3191.7,3191.6,42.213]
[1736857983100,3.2078,3191.8,3191.6,42.213]
[1736857983494,0.31345,3191.7,3191.6,42.52646]
[1736857983695,0.31345,3191.7,3191.6,42.213]
[1736857984093,2.77815,3191.7,3191.6,42.213]
[1736857984992,2.77815,3191.7,3191.6,40.8]
[1736857986092,7.4647,3191.7,3190.8,1.413]
[1736857986300,0.31353,3190.9,3190.8,1.413]
[1736857986501,0.31355,3190.7,3190.6,7.42785081]
[1736857986696,0.31355,3190.7,3190.6,7.11429081]
[1736857986997,0.31355,3190.7,3190.6,3.2078]
[1736857988304,3.2078,3190.8,3190.3,44.53439081]
[1736857988600,3.2078,3190.4,3190.0,6.93689081]
[1736857988804,0.31361,3190.1,3190.0,3.72909081]
[1736857989100,0.31361,3190.1,3190.0,44.52909081]
[1736857989299,0.31361,3190.1,3190.0,44.84271081]
[1736857989603,3.2078,3190.4,3190.1,0.3136]
[1736857989604,0.3136,3190.2,3190.1,0.3136]
[1736857990192,0.31361,3190.1,3190.0,43.29349081]
[1736857990397,0.31361,3190.1,3190.0,43.60711081]
[1736857990905,0.31361,3190.1,3190.0,43.29349081]
[1736857991100,0.31361,3190.1,3190.0,43.60711081]
[1736857991407,0.31361,3190.1,3190.0,43.29349081]
[1736857991703,0.31361,3190.1,3190.0,40.8]
[1736857995202,0.31361,3190.1,3190.0,41.11362]
[1736857995408,0.3136,3190.2,3190.1,0.3136]
[1736857996212,1.2764,3190.3,3190.2,0.3136]
[1736857996409,4.82875,3190.8,3190.7,0.31355]
[1736857996606,3.2078,3190.8,3190.7,0.31355]
[1736857996908,0.31354,3190.8,3190.7,0.31355]
[1736857997111,3.2078,3191.2,3190.6,2.49349081]
[1736857997407,0.31355,3190.8,3190.7,0.31355]
[1736857997606,3.2078,3191.2,3190.6,2.49349081]
[1736857997910,0.31356,3190.6,3190.5,0.31356]
[1736857998107,3.2078,3190.8,3190.4,1.375]
[1736857998409,0.31355,3190.7,3190.6,0.31355]
[1736857998806,3.2078,3190.8,3190.4,1.375]
[1736857999010,3.52134,3190.8,3190.7,0.31355]
[1736857999411,3.52134,3190.8,3190.6,2.49349081]
[1736857999412,3.52134,3190.8,3190.6,2.80704081]
[1736857999608,3.52134,3190.8,3190.7,0.31355]
[1736858000215,0.31355,3190.7,3190.6,2.80704081]
[1736858000912,3.52134,3190.8,3190.7,0.31355]
[1736858001110,3.2078,3190.8,3190.7,0.31355]
[1736858001309,2.5335,3191.5,3191.1,0.31351]
[1736858001310,3.2078,3191.2,3191.1,0.31351]
[1736858001501,3.2078,3191.7,3191.6,0.31346]
[1736858001801,3.2078,3191.7,3191.6,43.60695081]
[1736858002612,3.2078,3191.7,3191.6,44.83505081]
[1736858003710,3.2078,3191.7,3191.5,1.375]
[1736858003918,2.3618,3191.6,3190.8,2.5893]
[1736858004217,3.52133,3190.9,3190.8,1.375]
[1736858004918,3.52133,3190.9,3190.4,4.01556081]
[1736858004919,0.31357,3190.5,3190.4,5.39056081]
[1736858005116,1.2312,3190.8,3190.4,5.39056081]
[1736858005310,2.01507,3190.8,3190.4,1.375]
[1736858005511,0.31357,3190.5,3190.4,1.375]
[1736858005720,0.31361,3190.1,3190.0,3.2078]
[1736858007717,0.31361,3190.1,3190.0,3.52142]
[1736858007917,3.2078,3190.3,3189.8,2.49349081]
[1736858008115,3.2078,3190.3,3189.5,5.70129081]
[1736858008418,0.31363,3189.9,3189.8,0.31364]
[1736858008815,3.2078,3190.3,3189.8,2.49349081]
[1736858009318,3.2078,3190.3,3190.2,0.3136]
[1736858010118,3.2078,3190.3,3190.2,42.4886]
[1736858012119,3.2078,3190.7,3190.2,42.175]
[1736858012319,3.2078,3190.7,3190.6,0.31356]
[1736858012713,3.2078,3190.7,3190.5,1.1882]
[1736858012917,0.31356,3190.6,3190.5,1.50176]
[1736858013421,3.2078,3190.7,3190.5,1.50176]
[1736858013619,3.52135,3190.7,3190.5,1.50176]
[1736858013820,3.52135,3190.7,3190.5,1.1882]
[1736858014129,3.52135,3190.7,3190.6,0.31356]
[1736858015016,3.2078,3190.7,3190.5,1.1882]
[1736858015209,3.52136,3190.7,3190.5,1.50176]
[1736858015415,3.2078,3190.7,3190.6,0.31356]
[1736858015616,0.31356,3190.6,3190.5,1.50176]
[1736858015917,0.31356,3190.6,3190.5,1.1882]
[1736858016314,0.31356,3190.6,3190.5,1.50177]
[1736858018725,3.52135,3190.7,3190.6,0.31356]
[1736858020128,0.31356,3190.6,3190.5,1.50176]
[1736858020625,3.2078,3190.7,3190.5,1.1882]
[1736858020923,3.52136,3190.7,3190.6,0.31356]
[1736858021124,3.2078,3190.7,3190.5,1.1882]
[1736858021324,0.31356,3190.6,3190.5,1.50176]
[1736858022424,0.31356,3190.6,3190.5,1.1882]
[1736858022625,0.31356,3190.6,3190.5,1.50177]
[1736858023017,3.52135,3190.7,3190.6,0.31356]
[1736858023524,3.2078,3190.7,3190.6,0.31356]
[1736858023721,4.3917,3191.1,3190.5,1.1882]
[1736858023928,0.31355,3190.8,3190.7,2.80703081]
[1736858025028,0.31355,3190.8,3190.7,0.31354]
[1736858026030,4.3917,3191.1,3190.5,1.1882]
[1736858026231,0.31356,3190.7,3190.6,0.31355]
[1736858031432,0.31355,3190.8,3190.7,0.31354]
[1736858031631,0.31348,3191.5,3191.4,0.31348]
[1736858031937,3.2078,3191.8,3191.4,3.83749081]
[1736858031938,4.4486,3191.8,3191.4,3.83749081]
[1736858032131,3.2078,3191.8,3191.7,2.80694081]
[1736858032328,13.28631402,3192.0,3191.9,0.31343]
[1736858032729,13.28631402,3192.0,3191.9,41.11343]
[1736858032933,9.68173194,3192.0,3191.9,41.11343]
[1736858033132,5.75073194,3192.0,3191.9,41.11343]
[1736858033330,1.55419,3192.3,3191.9,40.8]
[1736858033530,1.55419,3192.3,3192.1,2.49349081]
[1736858033732,1.2408,3192.3,3192.2,1.6574]
[1736858034942,1.55419,3192.3,3192.2,1.344]
[1736858035439,1.2408,3192.3,3192.2,1.6574]
[1736858035834,3.2078,3192.4,3192.3,0.31339]
[1736858037427,1.184,3192.8,3192.2,3.9103]
[1736858037428,4.3918,3192.8,3192.2,7.1181]
[1736858037634,4.3918,3192.8,3192.7,2.80684081]
[1736858038336,4.3918,3192.8,3192.7,43.60684081]
[1736858040139,1.184,3192.8,3192.7,43.60684081]
[1736858040330,0.78309,3194.0,3193.2,0.3133]
[1736858040331,0.31328,3193.5,3193.2,0.3133]
[1736858040527,1.3041,3193.5,3193.4,0.31328]
[1736858040835,1.3041,3193.5,3193.4,2.49349081]
[1736858041143,1.61737,3193.5,3193.4,2.49349081]
[1736858041838,0.31322,3194.0,3193.6,0.31326]
[1736858042138,1.3074,3193.8,3193.7,43.29349081]
[1736858042342,4.389,3194.1,3193.7,43.29349081]
[1736858042531,0.31324,3193.9,3193.7,43.29349081]
[1736858042735,0.31323,3194.0,3193.7,43.60674081]
[1736858042930,0.31324,3193.8,3193.7,40.8]
[1736858043237,0.31328,3193.5,3193.2,2.80679081]
[1736858043437,3.2078,3193.6,3193.2,2.49349081]
[1736858043737,3.2078,3193.6,3193.5,2.80676081]
[1736858043939,3.2078,3193.6,3193.5,2.49349081]
[1736858044340,3.52106,3193.6,3193.5,2.49349081]
[1736858044634,0.3133,3193.2,3193.1,1.343]
[1736858045444,0.3133,3193.3,3193.1,1.343]
[1736858045637,0.3133,3193.3,3193.2,2.49349081]
[1736858046241,1.2852,3193.4,3193.2,2.49349081]
[1736858046438,1.59849,3193.4,3193.2,2.80679081]
[1736858046637,1.2852,3193.4,3193.3,40.8]
[1736858046835,1.2852,3193.4,3193.3,41.11329]
[1736858047139,3.2078,3193.6,3193.3,40.8]
[1736858047332,3.2078,3193.6,3193.5,2.80676081]
[1736858047650,3.2078,3193.6,3193.2,2.49349081]
[1736858047940,3.2078,3193.6,3193.3,41.11329]
[1736858047941,0.31328,3193.5,3193.3,41.11329]
[1736858048144,1.2924,3193.4,3193.3,41.11329]
[1736858048334,1.60568,3193.4,3193.3,40.8]
[1736858049543,1.2924,3193.4,3193.3,41.11329]
[1736858050041,1.2924,3193.4,3193.3,40.8]
[1736858050239,1.2924,3193.4,3193.3,41.11329]
[1736858051435,1.56025,3193.8,3193.7,0.31325]
[1736858052237,1.247,3193.8,3193.7,0.31325]
[1736858052640,1.247,3193.8,3193.7,41.11325]
[1736858053039,1.56024,3193.8,3193.7,41.11325]
[1736858054338,1.56024,3193.8,3193.7,40.8]
[1736858054645,0.31326,3193.7,3193.5,2.80676081]
[1736858054841,0.31326,3193.6,3193.5,2.80676081]
[1736858055034,0.31326,3193.6,3193.5,43.60676081]
[1736858055846,0.31326,3193.7,3193.6,0.31326]
[1736858056244,1.247,3193.8,3193.7,0.31325]
[1736858056445,1.247,3193.8,3193.6,0.31326]
[1736858056742,1.56025,3193.8,3193.7,0.31325]
[1736858056940,1.247,3193.8,3193.6,0.31326]
[1736858057135,0.31325,3193.7,3193.6,0.31326]
[1736858057343,1.247,3193.8,3193.7,0.31325]
[1736858057648,1.56024,3193.8,3193.5,43.29349081]
[1736858058035,1.247,3193.8,3193.7,0.31325]
[1736858058444,1.56024,3193.8,3193.7,0.31325]
[1736858059043,1.247,3193.8,3193.7,0.31325]
[1736858059336,1.247,3193.8,3193.5,43.29349081]
[1736858059537,0.31326,3193.6,3193.5,43.29349081]
[1736858059945,0.31326,3193.6,3193.5,43.60676081]
[1736858060746,1.247,3193.8,3193.5,43.29349081]
[1736858060953,0.31325,3193.7,3193.6,0.31326]
[1736858061751,1.56025,3193.8,3193.7,0.31325]
[1736858062348,1.247,3193.8,3193.7,0.31325]
[1736858063656,1.247,3193.8,3193.5,43.29349081]
[1736858063657,0.31326,3193.6,3193.5,43.60676081]
[1736858063848,0.31326,3193.6,3193.5,43.29349081]
[1736858064448,0.31326,3193.6,3193.5,43.60676081]
[1736858064852,0.31326,3193.6,3193.5,40.8]
[1736858065554,1.49476,3193.6,3193.5,40.8]
[1736858068045,1.1815,3193.6,3193.1,1.329]
[1736858068243,0.31331,3193.1,3193.0,3.2078]
[1736858068448,0.31332,3193.0,3192.9,1.329]
[1736858068648,2.83982,3193.0,3192.9,40.8]
[1736858068860,3.27282012,3193.0,3192.9,40.8]
[1736858070053,9.25250012,3193.0,3192.2,3.2078]
[1736858070255,0.31339,3192.3,3192.2,4.5368]
[1736858070957,0.3134,3192.2,3192.1,3.82249081]
[1736858071168,1.6064,3192.2,3192.1,44.62249081]
[1736858071457,1.6064,3192.2,3192.1,42.129]
[1736858073351,4.8142,3192.2,3192.1,42.129]
[1736858074951,4.8142,3192.2,3192.1,40.8]
[1736858076257,4.5008,3192.2,3192.1,43.60690081]
[1736858076462,1.293,3192.2,3192.1,44.93590081]
[1736858076653,1.6064,3192.2,3192.1,42.129]
[1736858077554,1.293,3192.2,3192.1,42.44241]
[1736858077759,1.2747,3192.4,3192.1,44.62249081]
[1736858077956,0.31336,3192.6,3192.4,0.31338]
[1736858078152,1.2154,3192.6,3192.2,1.329]
[1736858078454,1.52876,3192.6,3192.5,40.8]
[1736858080261,1.52876,3192.6,3192.5,41.11337]
[1736858081159,1.2154,3192.6,3192.5,41.11337]
[1736858081463,3.2078,3192.7,3192.6,0.31336]
[1736858082561,1.54593,3192.9,3192.8,0.31334]
[1736858083768,3.52112,3193.1,3192.7,2.49349081]
[1736858084059,3.2078,3193.1,3192.8,1.2555]
[1736858084259,0.31333,3193.0,3192.9,1.329]
[1736858084460,0.31333,3193.0,3192.9,1.64233]
[1736858084859,0.31333,3193.0,3192.9,1.329]
[1736858085462,3.2078,3193.1,3192.5,42.129]
[1736858085660,3.52116,3192.6,3192.5,41.11337]
[1736858085865,3.52116,3192.6,3192.5,40.8]
[1736858090272,3.52116,3192.6,3192.5,41.11337]
[1736858090770,3.52116,3192.6,3192.5,40.8]
[1736858090970,3.52116,3192.6,3192.5,41.11337]
[1736858091167,3.2078,3192.6,3192.5,41.11337]
[1736858091969,3.2078,3193.0,3192.5,40.8]
[1736858092169,0.31334,3192.9,3192.8,0.31333]
[1736858092373,3.2078,3193.0,3192.5,40.8]
[1736858092575,3.52116,3192.6,3192.5,40.8]
[1736858092774,3.52116,3192.6,3192.5,41.11337]
[1736858092976,3.52116,3192.6,3192.5,40.8]
[1736858093177,3.52116,3192.6,3192.5,41.11337]
[1736858093478,3.52116,3192.6,3192.5,40.8]
[1736858095773,3.2078,3192.6,3192.4,1.329]
[1736858095977,1.54437,3192.5,3192.4,1.329]
[1736858096377,1.54437,3192.5,3192.4,42.129]
[1736858097878,0.31337,3192.5,3192.4,44.93587081]
[1736858098377,0.31337,3192.5,3192.4,42.129]
[1736858098879,0.31337,3192.5,3192.4,42.44238]
[1736858099071,0.31337,3192.5,3192.4,42.129]
[1736858102980,0.31337,3192.5,3192.4,44.62249081]
[1736858103282,0.31337,3192.5,3192.4,40.8]
[1736858103483,0.31342,3192.0,3191.9,3.2078]
[1736858103790,0.31342,3192.0,3191.9,4.5258]
[1736858103979,0.31342,3192.0,3191.9,45.3258]
[1736858104584,0.31342,3192.0,3191.9,44.0078]
[1736858104788,0.31342,3192.0,3191.9,45.63923]
[1736858105683,0.3134,3192.3,3192.2,0.31339]
[1736858105987,0.31339,3192.4,3192.3,0.31338]
[1736858106983,3.2078,3192.6,3192.1,3.27702081]
[1736858106984,0.43332368,3192.6,3192.1,3.27702081]
[1736858107193,1.2687,3192.9,3192.0,1.309]
[1736858107194,0.43332368,3192.9,3192.8,0.31334]
[1736858107387,3.2078,3193.0,3192.8,0.31334]
[1736858107388,3.2078,3193.0,3192.9,0.31333]
[1736858107583,3.2078,3193.0,3192.8,1.318]
[1736858107786,0.31333,3192.9,3192.8,1.318]
[1736858108291,0.31333,3192.9,3192.8,42.118]
[1736858109083,0.31333,3192.9,3192.8,40.8]
[1736858110889,0.31335,3192.7,3192.6,1.318]
[1736858111587,1.59605,3192.7,3192.6,1.318]
[1736858112488,1.59605,3192.7,3192.3,40.8]
[1736858112489,0.31338,3192.4,3192.3,42.43138]
[1736858112884,0.31338,3192.4,3192.3,41.11338]
[1736858113085,0.31338,3192.4,3192.3,42.43138]
[1736858114084,0.31338,3192.4,3192.3,42.118]
[1736858114281,0.31338,3192.4,3192.3,40.8]
[1736858114691,0.31343,3191.9,3191.8,1.318]
[1736858115189,0.31343,3191.9,3191.8,42.118]
[1736858115996,1.72489206,3192.0,3191.8,42.118]
[1736858116206,0.31339,3192.3,3191.9,2.49349081]
[1736858116388,1.56656,3193.2,3192.5,0.31337]
[1736858116389,0.43333793,3192.6,3192.5,0.31337]
[1736858116597,0.31333,3192.9,3192.5,3.81149081]
[1736858116791,4.93263793,3193.3,3192.8,2.49349081]
[1736858117099,0.31333,3193.0,3192.9,0.31333]
[1736858117394,4.93263793,3193.3,3192.8,2.49349081]
[1736858117608,0.31329,3193.4,3193.3,0.31329]
[1736858117899,0.31329,3193.4,3193.3,1.63129]
[1736858118085,0.31329,3193.4,3193.3,1.318]
[1736858118291,3.52109,3193.4,3193.3,1.318]
[1736858118498,3.2078,3193.4,3193.0,40.8]
[1736858118691,0.31331,3193.1,3193.0,40.8]
[1736858119291,0.31335,3192.7,3192.6,4.5258]
[1736858119690,0.31335,3192.7,3192.6,45.3258]
[1736858120494,0.31335,3192.8,3192.7,0.31334]
[1736858120894,1.52634,3192.9,3192.8,0.31334]
[1736858121394,1.52634,3192.9,3192.6,47.81929081]
[1736858121597,0.31335,3192.8,3192.6,48.13265081]
[1736858121905,0.31335,3192.7,3192.6,48.13265081]
[1736858122099,0.31335,3192.7,3192.6,47.81929081]
[1736858122294,0.31335,3192.7,3192.6,45.3258]
[1736858123807,0.31335,3192.7,3192.6,47.81929081]
[1736858124397,0.31335,3192.7,3192.6,40.8]
[1736858124599,1.2781,3192.8,3192.1,3.2078]
[1736858124807,1.2781,3192.8,3192.0,3.81149081]
[1736858124808,0.31341,3192.1,3192.0,3.81149081]
[1736858125102,3.52121,3192.1,3192.0,40.8]
[1736858127107,4.71161,3192.1,3192.0,40.8]
[1736858129703,0.31347,3191.5,3191.4,1.63148]
[1736858130107,0.31347,3191.5,3191.4,42.43148]
[1736858130303,0.31347,3191.5,3191.4,42.118]
[1736858130617,0.31347,3191.5,3191.4,42.43148]
[1736858130997,0.31347,3191.5,3191.4,42.118]
[1736858135302,0.31347,3191.5,3191.4,42.43148]
[1736858135503,0.31347,3191.5,3191.4,42.118]
[1736858136706,4.3982,3192.1,3191.4,42.118]
[1736858136902,0.31346,3191.7,3191.6,0.31346]
[1736858137102,3.2078,3192.1,3191.4,42.118]
[1736858137306,0.31347,3191.5,3191.4,42.118]
[1736858138106,0.31347,3191.5,3191.4,44.61149081]
[1736858142315,0.31347,3191.5,3191.4,44.92497081]
[1736858147114,3.2078,3191.8,3191.4,47.10498162]
[1736858147418,3.2078,3191.8,3191.7,2.80694081]
[1736858147621,0.7835,3192.3,3192.0,0.31342]
[1736858147622,0.31342,3192.1,3192.0,0.31342]
[1736858147811,3.5212,3192.3,3192.2,0.3134]
[1736858148008,3.5212,3192.3,3192.2,1.318]
[1736858148617,3.5212,3192.3,3192.2,42.118]
[1736858149409,0.3134,3192.3,3192.2,42.118]
[1736858149622,0.31339,3192.4,3192.3,0.31339]
[1736858150320,1.2328,3192.6,3192.3,2.49349081]
[1736858150517,3.52116,3192.7,3192.3,3.69809081]
[1736858150715,3.52116,3192.7,3192.6,2.49349081]
[1736858151017,3.2078,3192.7,3192.6,2.49349081]
[1736858151217,0.31331,3193.2,3193.1,0.31331]
[1736858151414,0.31331,3193.2,3193.1,4.12480081]
[1736858151918,0.31331,3193.2,3193.1,44.61149081]
[1736858152609,3.2078,3193.3,3193.2,0.3133]
[1736858152815,1.53968,3193.5,3193.4,0.31328]
[1736858153112,1.53968,3193.5,3193.4,2.49349081]
[1736858153914,1.2264,3193.5,3193.1,48.13260081]
[1736858154125,0.3133,3193.3,3193.2,0.3133]
[1736858154815,1.55149,3193.4,3193.2,0.3133]
[1736858155315,1.2382,3193.4,3193.1,47.81929081]
[1736858155618,0.3133,3193.2,3193.1,47.81929081]
[1736858155824,0.3133,3193.2,3193.1,44.61049081]
[1736858157816,3.2078,3193.3,3192.8,2.49349081]
[1736858158013,0.78328,3193.2,3192.9,1.317]
[1736858158213,0.31332,3193.0,3192.9,1.317]
[1736858158421,0.31332,3193.0,3192.9,42.117]
[1736858161029,0.31332,3193.0,3192.9,40.8]
[1736858163820,0.31332,3193.0,3192.9,42.117]
[1736858164025,0.31332,3193.0,3192.9,40.8]
[1736858164524,0.31336,3192.6,3192.5,1.317]
[1736858164730,3.2078,3192.8,3192.5,3.81049081]
[1736858165028,3.52114,3192.8,3192.7,2.49349081]
[1736858165420,0.31334,3192.8,3192.7,2.49349081]
[1736858165927,0.31334,3192.8,3192.7,2.80684081]
[1736858166923,0.31334,3192.8,3192.7,43.60684081]
[1736858167627,1.2223,3192.9,3192.7,43.29349081]
[1736858167827,1.53564,3192.9,3192.8,0.31334]
[1736858168127,0.31334,3192.8,3192.7,43.60683081]
[1736858168327,1.53564,3192.9,3192.8,0.31334]
[1736858169034,1.2223,3192.9,3192.7,43.29349081]
[1736858169333,1.53564,3192.9,3192.8,0.31334]
[1736858169933,0.31332,3193.1,3193.0,0.31331]
[1736858170122,0.31332,3193.1,3193.0,2.80680081]
[1736858171223,0.31332,3193.1,3193.0,2.49349081]
[1736858171733,0.31332,3193.1,3193.0,2.80681081]
[1736858173938,0.31332,3193.1,3193.0,2.49349081]
[1736858174138,0.31332,3193.1,3192.7,43.29349081]
[1736858174139,0.31334,3192.8,3192.7,43.29349081]
[1736858174540,0.31334,3192.8,3192.7,43.60684081]
[1736858174939,1.2659,3193.3,3192.7,43.29349081]
[1736858175137,0.31332,3193.1,3193.0,0.31332]
[1736858176037,0.31333,3193.0,3192.9,0.31333]
[1736858176240,0.31333,3193.0,3192.9,2.80682081]
[1736858179239,0.31332,3193.1,3193.0,0.31332]
[1736858179438,1.5792,3193.3,3193.2,0.3133]
[1736858179638,1.5792,3193.3,3193.2,1.6303]
[1736858180242,1.5792,3193.3,3193.2,42.4303]
[1736858180439,1.5792,3193.3,3193.2,42.117]
[1736858180645,1.5792,3193.3,3193.2,42.4303]
[1736858181442,1.5792,3193.3,3193.2,42.117]
[1736858181637,1.98382552,3193.3,3193.2,42.117]
[1736858182040,1.5792,3193.3,3193.2,42.117]
[1736858182245,1.5792,3193.3,3193.2,42.4303]
[1736858183751,1.5792,3193.3,3193.2,42.117]
[1736858184046,1.98383006,3193.3,3193.2,40.8]
[1736858187145,0.31337,3192.5,3192.4,2.49349081]
[1736858187344,0.31337,3192.5,3192.4,3.81049081]
[1736858187545,0.31337,3192.5,3192.4,1.317]
[1736858187761,0.31337,3192.5,3192.4,40.8]
[1736858188346,0.31337,3192.5,3192.4,43.29349081]
[1736858189145,2.5354,3192.6,3192.4,43.29349081]
[1736858189350,1.2103,3192.6,3192.5,0.31337]
[1736858189744,1.2103,3192.6,3192.4,43.29349081]
[1736858190052,1.52367,3192.6,3192.5,0.31337]
[1736858190249,1.2103,3192.6,3192.4,43.29349081]
[1736858190457,0.31337,3192.5,3192.4,43.60687081]
[1736858191152,3.2078,3192.8,3192.4,43.29349081]
[1736858191351,3.2078,3192.8,3192.7,2.80684081]
[1736858191953,0.31333,3193.0,3192.9,0.31333]
[1736858192151,0.31333,3193.0,3192.9,1.317]
[1736858192343,0.31333,3193.0,3192.4,43.29349081]
[1736858192344,0.31337,3192.5,3192.4,43.29349081]
[1736858192957,0.31337,3192.5,3192.4,40.8]
[1736858193455,1.61997,3192.5,3192.4,40.8]
[1736858199256,1.61997,3192.5,3192.4,43.29349081]
[1736858201959,1.61997,3192.5,3192.4,40.8]
[1736858202452,1.61997,3192.5,3191.6,3.52126]
[1736858202453,0.31345,3191.7,3191.6,3.52126]
[1736858202855,0.31344,3191.8,3191.7,0.31344]
[1736858203156,0.31344,3191.8,3191.7,2.80693081]
[1736858204648,0.31344,3191.8,3191.7,2.49349081]
[1736858207452,0.31344,3191.8,3191.7,2.80694081]
[1736858207861,0.31344,3191.8,3191.7,2.49349081]
[1736858208059,0.31344,3191.8,3191.7,2.80694081]
[1736858208559,1.61673,3191.9,3191.8,0.31344]
[1736858208960,1.61673,3191.9,3191.6,40.8]
[1736858208961,1.3033,3191.9,3191.6,40.8]
[1736858209161,0.31345,3191.7,3191.6,40.8]
[1736858213865,0.31345,3191.7,3191.6,41.11346]
[1736858216765,3.52122,3192.1,3192.0,0.31342]
[1736858216964,3.2078,3192.1,3192.0,4.12391081]
[1736858217658,3.52121,3192.1,3192.0,4.12391081]
[1736858219563,3.52121,3192.1,3192.0,3.81049081]
[1736858220066,3.52121,3192.1,3192.0,1.317]
[1736858222268,3.52121,3192.1,3192.0,1.63042]
[1736858222571,3.52121,3192.1,3192.0,4.12391081]
[1736858223067,3.2078,3192.1,3192.0,4.12391081]
[1736858224970,0.3134,3192.2,3192.1,0.3134]
[1736858225167,0.3134,3192.2,3192.1,1.5392]
[1736858226570,0.3134,3192.3,3192.2,0.31339]
[1736858228166,0.40488095,3192.4,3192.1,1.2258]
[1736858228364,0.40492322,3192.7,3192.6,0.31336]
[1736858228564,3.2078,3192.9,3192.8,0.31334]
[1736858228773,5.752,3193.5,3192.7,7.03369081]
[1736858228961,1.64378,3193.4,3193.3,2.49349081]
[1736858229165,1.64378,3193.4,3193.3,2.80678081]
[1736858229370,5.752,3193.5,3193.4,0.31328]
[1736858229371,0.31328,3193.5,3193.4,0.31328]
[1736858230663,0.31328,3193.5,3193.3,3.81049081]
[1736858230864,0.31328,3193.5,3193.4,0.31328]
[1736858232575,0.31328,3193.4,3193.3,5.45617081]
[1736858234875,1.2351,3193.7,3193.3,5.14289081]
[1736858235073,1.54835,3193.7,3193.6,2.80675081]
[1736858236175,1.54835,3193.7,3193.6,43.29349081]
[1736858236472,1.54835,3193.7,3193.6,43.60675081]
[1736858236670,1.54835,3193.7,3193.6,43.29349081]
[1736858240774,1.54835,3193.7,3193.6,43.60675081]
[1736858241976,1.54835,3193.7,3193.6,43.29349081]
[1736858242375,1.54835,3193.7,3193.6,43.60675081]
[1736858243472,1.54835,3193.7,3193.6,43.29349081]
[1736858243781,1.54835,3193.7,3193.6,43.60675081]
[1736858244881,3.2078,3194.3,3193.6,48.99478162]
[1736858245083,3.07246428,3194.3,3194.2,2.80670081]
[1736858245280,6.977,3194.8,3194.2,1.316]